Cogmind - Beta 16 @@@ ROGUE MODE // 2025.10.28 @ 20:31:03 Player: beans Result: Destroyed by F8-Z2A(R) with Subdweller Machine Gun Performance ------------- Evolutions (0) 0 Regions Visited (2) 400 Robots Destroyed (7) 35 Value Destroyed (179) 179 Prototype IDs (0) 0 Alien Tech Used (0) 0 Bonus (0) 0 TOTAL SCORE: 614 Bonus ------- None Cogmind --------- Core Integrity 0/250 Matter 278/300 Energy 100/100 System Corruption 5% Temperature Cool (0) Movement Flying (40) Location -10/Subcaves Parts ------- > --- POWER (1) -------- (None) > --- PROPULSION (2) --- Flight Unit > --- UTILITY (2) ------ (None) > --- WEAPON (2) ------- Assault Rifle > --- INVENTORY (5) ---- Scrap Shield Subdweller Beam Cannon Peak State ------------ > --- POWER ------------ (None) > --- PROPULSION ------- Flight Unit > --- UTILITY ---------- (None) > --- WEAPON ----------- Assault Rifle Light Cannon > --- INVENTORY -------- (None) [Rating: 3] Favorites ----------- Power None Propulsion Flight Unit Flight Unit Flight Unit Utility None Weapon Assault Rifle Ballistic Gun Assault Rifle Ballistic Cannon Light Cannon Build | -11 -10 -10 ------- Run | Yrd Mat Sub Slots Evolved . | . . . Power . | . . . Propulsion . | . . . Utility . | . . . Weapon . | . . . Parts Attached 4 | 1 3 . Power . | . . . Engine . | . . . Core . | . . . Reactor . | . . . Propulsion 1 | . 1 . Treads . | . . . Leg . | . . . Wheel . | . . . Hover . | . . . Flight 1 | . 1 . Utility . | . . . Device . | . . . Storage . | . . . Processor . | . . . Hackware . | . . . Protection . | . . . Artifact . | . . . Weapon 3 | 1 2 . Energy Gun . | . . . Energy Cannon . | . . . Ballistic Gun 2 | 1 1 . Ballistic Cannon 1 | . 1 . Launcher . | . . . Special Weapon . | . . . Impact Weapon . | . . . Slashing Weapon . | . . . Piercing Weapon . | . . . Special Melee Weapon . | . . . Unidentified Prototypes . | . . . Parts Lost 2 | . 1 1 Power . | . . . Propulsion . | . . . Utility . | . . . Weapon 2 | . 1 1 Highest Loss Streak 1 | . 1 1 To Critical Strikes . | . . . Average Backups . | . . 1 Power . | . . . Propulsion . | . . . Utility . | . . . Weapon . | . . . Tool/Special . | . . . Unused Backups 2 | . . 2 Power . | . . . Propulsion . | . . . Utility 1 | . . 1 Weapon 1 | . . 1 Tool/Special . | . . . Average Slot Usage (%) 37 | . 33 41 Flight 10 | . 7 14 Ballistic Gun 13 | . 13 14 Ballistic Cannon 13 | . 13 13 Peak Build Rating 3 | 1 3 3 Average Rating 2 | . 2 2 On Entrance 1 | . 1 3 Avg Prop Armor Cover (%) . | . . . Naked Turns . | . . . Heaviest Build 5 | 2 5 5 Greatest Support 4 | 3 4 4 Greatest Overweight (x) 1 | . 1 1 Average Overweight (x) . | . . 1 Largest Inventory Capacity 5 | 5 5 5 Average Capacity 5 | 5 5 5 Most Carried 3 | 1 1 3 Average Carried 1 | . . 2 Final Capacity 5 | 5 5 5 Final Carried 3 | . . 3 Class Distribution -------------------- 100% | Mutant Dominant Class ---------------- Mutant | -10/Materials Mutant | -10/Subcaves Resources | -11 -10 -10 ----------- Run | Yrd Mat Sub Matter Collected 470 | 210 125 135 Remotely . | . . . Salvage Created 185 | . 185 . Parts 10 | . 10 . Haulers Intercepted . | . . . Recyclers Shooed . | . . . Parts Field Recycled . | . . . Retrieved Matter . | . . . Parts Self-Destructed 5 | . . 5 Prevented . | . . . Parts Restored . | . . . Kills | -11 -10 -10 ------- Run | Yrd Mat Sub Combat Hostiles Destroyed 7 | . 7 . Guns 1 | . 1 . Cannons 6 | . 6 . Classes Destroyed 2 | . 2 . Swarmer 3 | . 3 . Grunt 4 | . 4 . Best Kill Streak 4 | . 4 . Combat Bots Only 4 | . 4 . Max Kills in Single Turn 1 | . 1 . Gunslinging . | . . . Exploded . | . . . Melee . | . . . Uniques/NPCs Destroyed . | . . . Combat | -11 -10 -10 -------- Run | Yrd Mat Sub Hostile Shots Fired 54 | . 45 9 Missed 11 | . 8 3 Hits 43 | . 37 6 Projectile 43 | . 37 6 Damage Taken 606 | . 478 128 Core 270 | . 202 68 Absorbed by Shields . | . . . Core Remaining (%) 100 | 100 . . Volleys Fired 34 | . 27 7 Largest 2 | . 2 2 Hottest 50 | . 50 50 Shots Fired 64 | . 54 10 Gun 34 | . 27 7 Cannon 30 | . 27 3 Launcher . | . . . Special . | . . . Kinetic 64 | . 54 10 Thermal . | . . . Explosive . | . . . Electromagnetic . | . . . Robot Hit Streak 9 | . 5 9 Robot Miss Streak 3 | . 3 1 Penetration Max . | . . . Secondary Targets . | . . . Shots Hit Robots 38 | . 29 9 Core Hits 11 | . 10 1 Critical Kills . | . . . Critical Parts Destroyed . | . . . Critical Strikes 1 | . 1 . Blast 1 | . 1 . Melee Attacks . | . . . Impact . | . . . Slashing . | . . . Piercing . | . . . Sneak Attacks . | . . . Combat Hostiles . | . . . Follow-up Attacks . | . . . Damage Inflicted 587 | . 459 128 Guns 272 | . 184 88 Cannons 315 | . 275 40 Explosions . | . . . Melee . | . . . Ramming . | . . . Kinetic 587 | . 459 128 Thermal . | . . . Explosive . | . . . Electromagnetic . | . . . Impact . | . . . Slashing . | . . . Piercing . | . . . Highest Corruption 5 | . 5 5 Average Corruption 4 | . 3 5 Corruption Purged . | . . . Corruption Blocked . | . . . Effects 8 | . 5 3 Message Errors 1 | . 1 . Matter Fused 5 | . 2 3 Heat Flow Errors 1 | . 1 . Misfires 1 | . 1 . Overload Shots . | . . . Overflow Damage . | . . . Projectiles . | . . . Explosions . | . . . Melee . | . . . Knockbacks 3 | . 3 . Impact . | . . . Kinetic 3 | . 3 . Secondary . | . . . Self-Inflicted Damage . | . . . Shots . | . . . Rammed . | . . . Targets Rammed . | . . . Kicked . | . . . Crushed . | . . . Highest Temperature 165 | . 165 . Average Temperature 37 | . 37 . Received Heat Transfer 153 | . 153 . Siege Activations . | . . . Martial Activations . | . . . Shielding Activations . | . . . Robots Disrupted . | . . . Combat Hostiles . | . . . Robots Corrupted . | . . . Combat Hostiles . | . . . Parts Fried . | . . . Impact Corruptions . | . . . Robots Melted . | . . . Combat Hostiles . | . . . Parts Melted . | . . . Heat Transferred . | . . . Parts Sabotaged . | . . . Parts Stolen . | . . . Parts Stripped . | . . . Power Chain Reactions . | . . . Alert | -11 -10 -10 ------- Run | Yrd Mat Sub Maximum Alert Level . | . . . Low Security (%) 100 | 100 100 . Level 1 . | . . . Level 2 . | . . . Level 3 . | . . . Level 4 . | . . . Level 5 . | . . . High Security . | . . . Max Security . | . . . Peak Influence 96 | . 96 . Initial . | . . . Average 42 | . 45 . Influence Increases 191 | . 191 . Destroy 0b10 Robot/C 140 | . 140 . Destroy Leader 20 | . 20 . Destroy Structure 1 | . 1 . Partial Spotted 30 | . 30 . Influence Decreases 191 | . 180 11 Entered New Map 6 | . . 6 Time Decay 175 | . 170 5 Lost Part 10 | . 10 . Squads Dispatched . | . . . Investigation . | . . . Extermination . | . . . Reinforcement . | . . . Assault . | . . . Garrison . | . . . Intercept . | . . . Searches Triggered . | . . . Construction Impeded . | . . . Haulers Reinforced . | . . . Active Scanning Responses . | . . . Cargo Convoy Interrupts . | . . . Stealth | -11 -10 -10 --------- Run | Yrd Mat Sub Distress Signals . | . . . Communications Jammed . | . . . Distress Signals . | . . . Times Spotted 16 | . 10 6 Peak Tracking Total 4 | . 4 2 Tactical Retreats . | . . . Traps | -11 -10 -10 ------- Run | Yrd Mat Sub Traps Triggered 4 | . 4 . Indirectly . | . . . Trap Hack Attempts . | . . . Triggered . | . . . Disarmed . | . . . Reprogrammed . | . . . Reused . | . . . Traps Extracted . | . . . Installed . | . . . Triggered . | . . . Machines | -11 -10 -10 ---------- Run | Yrd Mat Sub Machines Disabled . | . . . Max in Single Turn . | . . . Machines Repaired . | . . . Machines Dismantled . | . . . Machines Sabotaged . | . . . Overloaded Fab Kills . | . . . Hacking | -11 -10 -10 --------- Run | Yrd Mat Sub Machines Accessed . | . . . Terminals . | . . . Fabricators . | . . . Repair Stations . | . . . Recycling Units . | . . . Scanalyzers . | . . . Garrison Access . | . . . Total Hacks . | . . . Successful . | . . . Failed . | . . . Catastrophic . | . . . Database Lockouts . | . . . Manual . | . . . Terminals . | . . . Fabricators . | . . . Repair Stations . | . . . Recycling Units . | . . . Scanalyzers . | . . . Garrison Access . | . . . Terminal Hacks . | . . . Fabricator Hacks . | . . . Repair Station Hacks . | . . . Recycling Unit Hacks . | . . . Scanalyzer . | . . . Garrison Access Hacks . | . . . Unauthorized Hacks . | . . . Terminals . | . . . Fabricators . | . . . Repair Stations . | . . . Recycling Units . | . . . Scanalyzers . | . . . Garrison Access . | . . . Data Cores Recovered . | . . . Used . | . . . Hacking Detections . | . . . Full Trace Events . | . . . Feedback Events . | . . . Feedback Blocked . | . . . Robot Schematics Acquired . | . . . Robots Built . | . . . Authchips . | . . . Time . | . . . Total Robot Build Rating . | . . . Part Schematics Acquired . | . . . Parts Built . | . . . Authchips . | . . . Time . | . . . Total Part Build Rating . | . . . Part Studies Acquired . | . . . Parts Repaired . | . . . Time . | . . . Parts Recycled . | . . . Recycled Matter . | . . . Retrieved Matter . | . . . Retrieved Components . | . . . Parts Scanalyzed . | . . . Part Schematics Acquired . | . . . Parts Damaged . | . . . Bothacking | -11 -10 -10 ------------ Run | Yrd Mat Sub Used RIF Installer . | . . . Robots Hacked . | . . . Non-combat . | . . . Combat . | . . . Robot Hacks Applied . | . . . Relay Couplers Released . | . . . Fabnet Peak Effective % . | . . . Robots Rewired . | . . . Allies Hacked . | . . . Hacks Repelled . | . . . Allies | -11 -10 -10 -------- Run | Yrd Mat Sub Total Allies . | . . . Largest Group . | . . . Highest-Rated Group . | . . . Highest-Rated Ally . | . . . Total Orders . | . . . Ally Attacks . | . . . Total Damage . | . . . Kills . | . . . Allies Corrupted . | . . . Allies Melted . | . . . Intel | -11 -10 -10 ------- Run | Yrd Mat Sub Active Infowar (turns) . | . . . Robot Analysis Total . | . . . Derelict Logs Recovered . | . . . Drone Launches . | . . . Drone Recoveries . | . . . Exploration | -11 -10 -10 ------------- Run | Yrd Mat Sub Turns Passed 665 | 20 358 287 Spaces Moved 498 | 36 269 193 Core 167 | 36 131 . Treads . | . . . Legs . | . . . Wheels . | . . . Hover . | . . . Flight 331 | . 138 193 Fastest Speed 50 | 50 50 120 Average Speed 104 | 50 101 120 Slowest Speed 120 | 50 120 120 Overloaded Moves . | . . . Propulsion Burnouts . | . . . Robots Hopped . | . . . Potential Cave-ins . | . . . Cave-ins Triggered . | . . . Exploration Rate (%) 20 | 3 40 18 Regions Visited 2 Branch Regions 1 Pre-discovered Areas . | . . . Known Exits Taken . | . . . Unknown Exits Taken 2 | 1 1 . Scrap Searched . | . . . Spaces Dug . | . . . Terrain Destroyed . | . . . Melee . | . . . Projectile . | . . . AOE . | . . . Terrain Rammed . | . . . Walls Destroyed . | . . . Machines Disabled . | . . . Actions | -11 -10 -10 --------- Run | Yrd Mat Sub Total 577 | 37 302 238 Wait 37 | . 1 36 Move 496 | 35 268 193 Hop . | . . . Pick Up 6 | 1 3 2 Fast Attach . | . . . Attach 4 | 1 3 . Detach . | . . . Swap . | . . . Drop . | . . . Fire 34 | . 27 7 Melee . | . . . Ram . | . . . Kick . | . . . Crush . | . . . Escape Stasis . | . . . Rewire . | . . . Trap . | . . . Miscellaneous . | . . . Route ------- -11/Scrapyard -10/Materials (discovered 2 exits: [*Min] / [*Sub]) -10/Subcaves History --------- Turn | Location | Event 3 | -11/Scrapyard | Discovered new exit (range 16) 21 | -11/Scrapyard | Entered Materials 90 | -10/Materials | Core integrity fell below 50% 129 | -10/Materials | Discovered new exit (range 6) 303 | -10/Materials | Build established: Mutant 304 | -10/Materials | Discovered new exit (range 9) 328 | -10/Materials | Core integrity fell below 20% 379 | -10/Materials | Entered Subcaves 380 | -10/Subcaves | Approached by a straggling Scientist 387 | -10/Subcaves | Ambushed by Subdwellers from Twisted Machinery 491 | -10/Subcaves | A swath of the cavern ceiling suddenly collapsed 666 | -10/Subcaves | Destroyed by F8-Z2A(R) with Subdweller Machine Gun Last Messages --------------- HV Slug penetrates ON-61O(R). ON-61O(R) suffers critical hit (Destroy). HV Slug penetrates M5-DLU(R). M5-DLU(R) destroyed. ON-61O(R) affixes Scrap Shield Fragment to Scrap Shield. HV Slug penetrates ON-61O(R). ON-61O(R) suffers critical hit (Destroy). ON-61O(R) destroyed. CJ-J0U(c): "I think it's somewhere west of here" Acquired 24 matter. Acquired 53 matter. Acquired Sub. Beam Cannon. CJ-J0U(c): "I think it's somewhere west of here" System corrupted: Matter fused (-6). CJ-J0U(c): "I think it's somewhere west of here" HV Slug penetrates Twisted Machinery. X9-G76(h) suffers critical hit (Destroy). X9-G76(h) destroyed. Lgt. Cannon destroyed. Map ----- +----------------------------------------------------+ | ????# #??? ?????????????????????????? | | ????# #??? ?????????????????????????? | | ????# ##??? ?????????????????????????? | | #### ###?? ?????????????????????????? | | #??????????????????????????????? | | ##??????????????????????????????? | | #???????????????????????????????? | | ## ##???????????????????????????????? | | # ##?# ##??????"#????????????????????????? | | ##???# ##??##??"#? ? ???????????????????? | | ????## #### ## # ???????????????????? | | ????# # ##?????????????????? | | ????# ## ?? ##???????????????? | | ???## #???????? ##??????????????? | | ???# #???????? #??????????????? | | ???## #????????? #??????????????? | | ????## #????????? #??????????????? | | ????## ##????????? ???????????????? | | ?#### ##??????????# ???????????????? | | ## #??????###??# ????????????????? | | ###??????? "## ????????????????? | | = ##?????????# # ?????????????????? | | # ! !!####??????? !] ?????????????????? | | ## & & #????????#R*%#?????????????????? | | ?# &%= #????????# R####??????????????? | | ?## #????????### @ ##?????????????? | | ??# #" ##???????#### #?????????????? | | ?# ### #??????## ##c #?????????????? | | ?# #??# ###????# #?????????????? | | ?# ??## #????## ##?????????????? | | ?# ?## #???# ## ##??????????????? | | ?# ?# ##?## ### ##??????????????? | | ?# ??# ##??# ??## #??????????????? | | ? ??### ##???# #??# ##??????????????? | | ?# ????## #???## #??# ##??????????????? | | ???????## ##### #??# #??????????????? | | ####??## ## #### #??????????????? | | # #### ## ### ##?????????????? | | # ## ## #?????????????? | | # ## #?????????????? | | ## ## # ## #?????????????? | | ?## ## ######## #?????????????? | | ??# ### ##??????## ##?????????????? | | ??## #?# #????????####??????????????? | | ???#####?# #??????????????????????????? | | ?????????### ##??????????????????????????? | | ???????????#####???????????????????????????? | | ???????????????????????????????????????????? | | ???????????????????????????????????????????? | | ???????????????????????????????????????????? | +----------------------------------------------------+ Best States ------------- Heat Dissipation 25 Energy Generation 5 Energy Capacity 100 Matter Stores 300 Matter Capacity 300 Sight Range 16 Terrain Scan Density 10 Evasion (%) 50 Item Schematics ----------------- None Robot Schematics ------------------ None Fabricated ------------ Nothing Repaired ---------- Nothing Studied --------- None Alien Tech Used ----------------- None Achievements -------------- None Challenges ------------ None Game ------ Seed DisassembledNuclearMapper Manual? 0 Play Time 00:06:09 Cumulative 199.0 hours Start 2025.10.28 @ 20:24:20 End 2025.10.28 @ 20:31:03 Sessions 1 Manual Loads 0 Difficulty Rogue Special Mode None Game No. 584 Rogue 583 Adventurer 1 Explorer 0 Win Type - Total 0 Types 0/0/0/0/0/0/0/0/0/0 Lore% 64 Gallery% 60 Achievement% 33 Wizard Run 0 Options --------- Layout 1 ASCII 0 Keyboard 0 Movement Mouse Keybinds 0 Fullscreen 1 Font 24/Smallcaps Map View 50x35 Zoom Use 0% Tactical HUD 0 Map Filters NONE Filters NONE Steam 1 RUN: 624fac4d-b128-43e7-a00f-747af2061fc8